[Event "EYCC 2017"]
[Site "Mamaia"]
[Date "2017.09.11"]
[Round "6"]
[White "Giang, Tran Nam"]
[Black "Dimitrov, Dimitar Hr"]
[Result "1-0"]
[ECO "B01"]
[WhiteElo "1561"]
[BlackElo "1170"]
[Annotator "NA RC"]
[PlyCount "63"]
[EventDate "2017.??.??"]
[EventType "swiss"]
[EventCountry "ROU"]
[SourceTitle "playchess.com"]
[Source "ChessBase"]
[SourceQuality "1"]
[TimeControl "40/5400+30:1800+30"]

1. e4 {[%emt 0:00:00]} d5 {[%emt 0:00:15]} 2. exd5 {[%emt 0:00:00]} Qxd5 {[%emt 0:00:09]} 3. Nc3 {[%emt 0:00:00]} Qa5 {[%emt 0:00:15]} 4. d4 {[%emt 0:00:00]} c6 {[%emt 0:00:08]} 5. Bc4 {[%emt 0:00:41]} Nf6 {[%emt 0:00:15]} 6. Nf3 {[%emt 0:01:23]} Bg4 {[%emt 0:00:15]} 7. h3 {[%emt 0:01:25]} Bh5 {[%emt 0:02:28]} 8. Qe2 {[%emt 0:03:20]} e6 {[%emt 0:01:39]} 9. g4 {[%emt 0:04:38]} Bg6 {[%emt 0:00:57]} 10. Ne5 {[%emt 0:01:14]} Bb4 {[%emt 0:01:40]} 11. Bd2 {[%emt 0:01:02]} Nbd7 {[%emt 0:01:33]} 12. h4 {[%emt 0:03:57]} Bxc2 {[%emt 0:01:02]} 13. Nxf7 {[%emt 0:01:16]} e5 {[%emt 0:01:31]} 14. Nxh8 {[%emt 0:04:08]} O-O-O {[%emt 0:00:58]} 15. g5 {[%emt 0:08:35]} Nd5 {[%emt 0:01:13]} 16. Bxd5 {[%emt 0:05:50]} cxd5 {[%emt 0:00:29]} 17. Rc1 {[%emt 0:00:45]} exd4 {[%emt 0:01:19]} 18. Rxc2 {[%emt 0:02:26]} dxc3 {[%emt 0:00:19]} 19. Bxc3 {[%emt 0:01:22]} Kb8 {[%emt 0:00:23]} 20. Nf7 {[%emt 0:08:49]} Bxc3+ {[%emt 0:00:48]} 21. bxc3 {[%emt 0:01:37]} Rc8 {[%emt 0:00:45]} 22. O-O {[%emt 0:02:10]} h6 {[%emt 0:00:55]} 23. Rb1 {[%emt 0:02:36]} Nb6 {[%emt 0:03:12]} 24. Nd6 {[%emt 0:03:18]} Rc7 {[%emt 0:01:13]} 25. Qe8+ {[%emt 0:00:31]} Nc8 {[%emt 0:00:29]} 26. Rxb7+ {[%emt 0:00:25]} Ka8 {[%emt 0:00:58]} 27. Rxc7 {[%emt 0:01:25]} Qxc7 {[%emt 0:00:12]} 28. Qxc8+ {[%emt 0:00:03]} Qxc8 {[%emt 0:00:16]} 29. Nxc8 {[%emt 0:00:03]} Kb7 {[%emt 0:00:27]} 30. gxh6 {[%emt 0:00:09]} gxh6 {[%emt 0:00:08]} 31. Nd6+ {[%emt 0:00:15]} Kc6 {[%emt 0:00:09]} 32. Nf5 {[%emt 0:00:12]} 1-0

[Event "EYCC 2017"]
[Site "Mamaia"]
[Date "2017.09.11"]
[Round "6"]
[White "Maria, Lia-Alexandra"]
[Black "Pawicka, Magdalena"]
[Result "0-1"]
[ECO "D24"]
[WhiteElo "1539"]
[BlackElo "1826"]
[Annotator "NA"]
[PlyCount "72"]
[EventDate "2017.??.??"]
[EventType "swiss"]
[EventCountry "ROU"]
[SourceTitle "playchess.com"]
[Source "ChessBase"]
[SourceQuality "1"]
[TimeControl "40/5400+30:1800+30"]

1. d4 {[%emt 0:00:00]} d5 {[%emt 0:00:09]} 2. c4 {[%emt 0:00:09]} dxc4 {[%emt 0:00:31]} 3. Nf3 {[%emt 0:01:51]} Nf6 {[%emt 0:00:23]} 4. Nc3 {[%emt 0:00:43]} a6 {[%emt 0:02:25]} 5. a4 {[%emt 0:00:30]} e6 {[%emt 0:16:17]} 6. e3 {[%emt 0:05:47]} b6 {[%emt 0:02:56]} 7. Bxc4 {[%emt 0:01:17]} Bb7 {[%emt 0:00:18]} 8. O-O {[%emt 0:02:34]} Be7 {[%emt 0:03:27]} 9. Re1 {[%emt 0:01:00]} O-O {[%emt 0:02:12]} 10. b3 {[%emt 0:02:26]} c5 {[%emt 0:05:58]} 11. Be2 {[%emt 0:13:23]} Nc6 {[%emt 0:03:11]} 12. Bb2 {[%emt 0:03:29]} cxd4 {[%emt 0:03:02]} 13. exd4 {[%emt 0:01:51]} Nb4 {[%emt 0:05:53]} 14. h3 {[%emt 0:02:59]} Nbd5 {[%emt 0:02:08]} 15. Na2 {[%emt 0:02:52]} Rc8 {[%emt 0:03:53]} 16. Ne5 {[%emt 0:03:45]} Bd6 {[%emt 0:07:30]} 17. Bf1 {[%emt 0:05:58]} Nb4 {[%emt 0:03:43]} 18. Nc3 {[%emt 0:01:41]} Nfd5 {[%emt 0:00:36]} 19. Qd2 {[%emt 0:01:09]} Nxc3 {[%emt 0:01:37]} 20. Bxc3 {[%emt 0:00:16]} Nd5 {[%emt 0:00:38]} 21. Bb2 {[%emt 0:00:24]} Bb4 {[%emt 0:00:21]} 22. Qd3 {[%emt 0:04:14]} Bxe1 {[%emt 0:01:11]} 23. Rxe1 {[%emt 0:00:16]} Qg5 {[%emt 0:03:01]} 24. Nf3 {[%emt 0:04:55]} Qh5 {[%emt 0:01:47]} 25. Re5 {[%emt 0:03:22]} Qg6 {[%emt 0:01:38]} 26. Qe2 {[%emt 0:01:49]} Rc2 {[%emt 0:01:19]} 27. Nh4 {[%emt 0:07:36]} Rxe2 {[%emt 0:03:23]} 28. Nxg6 {[%emt 0:01:12]} Rxb2 {[%emt 0:00:59]} 29. Nxf8 {[%emt 0:00:22]} Kxf8 {[%emt 0:00:20]} 30. Bc4 {[%emt 0:00:50]} Rd2 {[%emt 0:01:03]} 31. Rh5 {[%emt 0:02:24]} Nf6 {[%emt 0:01:47]} 32. Rh4 {[%emt 0:00:36]} Bd5 {[%emt 0:03:16]} 33. Bxa6 {[%emt 0:01:02]} Bxb3 {[%emt 0:00:14]} 34. Bb5 {[%emt 0:00:33]} g5 {[%emt 0:01:09]} 35. Rh6 {[%emt 0:00:56]} Kg7 {[%emt 0:00:05]} 36. Rxf6 {[%emt 0:00:47]} Kxf6 {[%emt 0:00:04]} 0-1

[Event "EYCC 2017"]
[Site "Mamaia"]
[Date "2017.09.11"]
[Round "6"]
[White "Fedorova, Olesya"]
[Black "Natoli, Alessia"]
[Result "1-0"]
[ECO "A45"]
[WhiteElo "1534"]
[BlackElo "1216"]
[Annotator "NA"]
[PlyCount "131"]
[EventDate "2017.??.??"]
[EventType "swiss"]
[EventCountry "ROU"]
[SourceTitle "playchess.com"]
[Source "ChessBase"]
[SourceQuality "1"]
[TimeControl "40/5400+30:1800+30"]

1. d4 {[%emt 0:00:00]} Nf6 {[%emt 0:00:09]} 2. Nc3 {[%emt 0:00:00]} d5 {[%emt 0:00:22]} 3. Bf4 {[%emt 0:00:00]} Nbd7 {[%emt 0:01:40]} 4. e3 {[%emt 0:03:17]} c6 {[%emt 0:00:35]} 5. Nf3 {[%emt 0:02:07]} e6 {[%emt 0:02:12]} 6. Bd3 {[%emt 0:00:26]} Bb4 {[%emt 0:01:45]} 7. O-O {[%emt 0:00:45]} Bxc3 {[%emt 0:00:16]} 8. bxc3 {[%emt 0:00:08]} O-O {[%emt 0:00:24]} 9. c4 {[%emt 0:07:42]} Nb6 {[%emt 0:03:05]} 10. c5 {[%emt 0:01:09]} Nbd7 {[%emt 0:00:34]} 11. c4 {[%emt 0:09:32]} Re8 {[%emt 0:01:49]} 12. cxd5 {[%emt 0:10:33]} exd5 {[%emt 0:00:22]} 13. Rb1 {[%emt 0:11:07]} b6 {[%emt 0:02:16]} 14. cxb6 {[%emt 0:08:23]} axb6 {[%emt 0:00:21]} 15. Qc2 {[%emt 0:05:12]} c5 {[%emt 0:01:48]} 16. dxc5 {[%emt 0:11:42]} bxc5 {[%emt 0:00:20]} 17. Bb5 {[%emt 0:03:34]} c4 {[%emt 0:06:25]} 18. Rfd1 {[%emt 0:01:57]} Ba6 {[%emt 0:02:01]} 19. Bc6 {[%emt 0:03:41]} Rc8 {[%emt 0:00:27]} 20. Bxd5 {[%emt 0:02:07]} Nxd5 {[%emt 0:03:33]} 21. Rxd5 {[%emt 0:00:30]} Qe7 {[%emt 0:00:43]} 22. Qa4 {[%emt 0:03:00]} Nf6 {[%emt 0:02:08]} 23. Re5 {[%emt 0:01:37]} Qa7 {[%emt 0:01:46]} 24. Ra5 {[%emt 0:02:09]} Ra8 {[%emt 0:01:34]} 25. Be5 {[%emt 0:02:20]} Qd7 {[%emt 0:01:34]} 26. Bxf6 {[%emt 0:05:01]} Qxa4 {[%emt 0:00:16]} 27. Rxa4 {[%emt 0:00:06]} gxf6 {[%emt 0:00:29]} 28. Rc1 {[%emt 0:02:08]} Red8 {[%emt 0:01:34]} 29. Nd4 {[%emt 0:00:36]} Rdb8 {[%emt 0:00:57]} 30. Nc6 {[%emt 0:01:25]} Rb7 {[%emt 0:00:46]} 31. Rb4 {[%emt 0:01:28]} Rxb4 {[%emt 0:00:21]} 32. Nxb4 {[%emt 0:00:09]} Bb5 {[%emt 0:00:13]} 33. f3 {[%emt 0:01:19]} Rd8 {[%emt 0:00:36]} 34. e4 {[%emt 0:00:21]} Rd2 {[%emt 0:00:21]} 35. Nd5 {[%emt 0:00:32]} Rxa2 {[%emt 0:01:27]} 36. Nc3 {[%emt 0:00:29]} Ra5 {[%emt 0:00:34]} 37. Nxb5 {[%emt 0:00:11]} Rxb5 {[%emt 0:00:09]} 38. Rxc4 {[%emt 0:00:08]} Rb1+ {[%emt 0:03:27]} 39. Kf2 {[%emt 0:00:07]} Rh1 {[%emt 0:00:29]} 40. h3 {[%emt 0:00:00]} Kg7 {[%emt 0:00:34]} 41. Ke3 {[%emt 0:01:35]} Re1+ {[%emt 0:00:55]} 42. Kf4 {[%emt 0:00:34]} Re2 {[%emt 0:00:56]} 43. g3 {[%emt 0:01:16]} h6 {[%emt 0:00:48]} 44. h4 {[%emt 0:01:51]} h5 {[%emt 0:00:25]} 45. g4 {[%emt 0:00:44]} hxg4 {[%emt 0:00:27]} 46. fxg4 {[%emt 0:00:25]} Rf2+ {[%emt 0:00:15]} 47. Kg3 {[%emt 0:00:13]} Rf1 {[%emt 0:00:28]} 48. Rc2 {[%emt 0:01:03]} Rg1+ {[%emt 0:01:13]} 49. Rg2 {[%emt 0:00:13]} Re1 {[%emt 0:00:13]} 50. Kf3 {[%emt 0:00:10]} Rh1 {[%emt 0:00:59]} 51. h5 {[%emt 0:00:29]} Re1 {[%emt 0:00:40]} 52. Rf2 {[%emt 0:01:05]} Rg1 {[%emt 0:01:13]} 53. Kf4 {[%emt 0:00:12]} Re1 {[%emt 0:00:25]} 54. Rf3 {[%emt 0:00:49]} Re2 {[%emt 0:00:53]} 55. Re3 {[%emt 0:00:56]} Rf2+ {[%emt 0:00:22]} 56. Rf3 {[%emt 0:00:05]} Re2 {[%emt 0:00:08]} 57. Rh3 {[%emt 0:00:50]} Rg2 {[%emt 0:02:25]} 58. Re3 {[%emt 0:00:36]} Rf2+ {[%emt 0:01:46]} 59. Kg3 {[%emt 0:00:17]} Rf1 {[%emt 0:00:16]} 60. Kg2 {[%emt 0:00:40]} Rf4 {[%emt 0:00:23]} 61. Kg3 {[%emt 0:00:28]} Rf1 {[%emt 0:00:10]} 62. Re2 {[%emt 0:01:34]} Kh6 {[%emt 0:00:57]} 63. Rf2 {[%emt 0:00:49]} Rxf2 {[%emt 0:00:50]} 64. Kxf2 {[%emt 0:00:15]} f5 {[%emt 0:01:27]} 65. exf5 {[%emt 0:00:16]} f6 {[%emt 0:00:36]} 66. Ke3 {[%emt 0:00:13]} 1-0

[Event "EYCC 2017"]
[Site "Mamaia"]
[Date "2017.09.11"]
[Round "6"]
[White "Shubenkova, Veronika"]
[Black "Markus, Molli Amina"]
[Result "1-0"]
[ECO "D55"]
[WhiteElo "1505"]
[BlackElo "1520"]
[Annotator "NA RC"]
[PlyCount "116"]
[EventDate "2017.??.??"]
[EventType "swiss"]
[EventCountry "ROU"]
[SourceTitle "playchess.com"]
[Source "ChessBase"]
[SourceQuality "1"]
[TimeControl "40/5400+30:1800+30"]

1. Nf3 {[%emt 0:02:00]} d5 {[%emt 0:03:17]} 2. d4 {[%emt 0:01:42]} Nf6 {[%emt 0:02:13]} 3. c4 {[%emt 0:01:50]} e6 {[%emt 0:02:48]} 4. Bg5 {[%emt 0:03:49]} Be7 {[%emt 0:02:43]} 5. e3 {[%emt 0:03:39]} O-O {[%emt 0:01:45]} 6. Nc3 {[%emt 0:02:40]} c6 {[%emt 0:01:45]} 7. cxd5 {[%emt 0:02:36]} exd5 {[%emt 0:01:57]} 8. Bd3 {[%emt 0:01:43]} h6 {[%emt 0:02:37]} 9. Bxf6 {[%emt 0:00:24]} Bxf6 {[%emt 0:00:15]} 10. O-O {[%emt 0:01:52]} Nd7 {[%emt 0:02:37]} 11. Bc2 {[%emt 0:01:25]} Nb6 {[%emt 0:03:27]} 12. Qd3 {[%emt 0:01:48]} g6 {[%emt 0:02:21]} 13. b3 {[%emt 0:02:55]} Bf5 {[%emt 0:01:30]} 14. Qd2 {[%emt 0:00:46]} Bxc2 {[%emt 0:01:40]} 15. Qxc2 {[%emt 0:00:06]} Bg7 {[%emt 0:01:44]} 16. Rac1 {[%emt 0:03:03]} Qd7 {[%emt 0:03:08]} 17. Ne2 {[%emt 0:02:05]} Nc8 {[%emt 0:05:22]} 18. Ng3 {[%emt 0:08:51]} Re8 {[%emt 0:03:32]} 19. a3 {[%emt 0:02:13]} Nd6 {[%emt 0:02:05]} 20. Rfe1 {[%emt 0:06:12]} Ne4 {[%emt 0:05:26]} 21. Nxe4 {[%emt 0:02:39]} Rxe4 {[%emt 0:02:48]} 22. Nd2 {[%emt 0:03:16]} Re7 {[%emt 0:01:31]} 23. b4 {[%emt 0:02:43]} Rae8 {[%emt 0:02:12]} 24. Nb3 {[%emt 0:05:50]} Qd6 {[%emt 0:02:25]} 25. Rf1 {[%emt 0:02:11]} Kh7 {[%emt 0:03:44]} 26. Qc5 {[%emt 0:00:49]} Qb8 {[%emt 0:05:35]} 27. b5 {[%emt 0:04:39]} cxb5 {[%emt 0:04:31]} 28. Qxd5 {[%emt 0:03:53]} a6 {[%emt 0:01:25]} 29. Rc5 {[%emt 0:02:12]} f5 {[%emt 0:03:47]} 30. g3 {[%emt 0:02:46]} Rd8 {[%emt 0:03:02]} 31. Qf3 {[%emt 0:00:35]} Qd6 {[%emt 0:01:17]} 32. Qf4 {[%emt 0:05:14]} Qe6 {[%emt 0:01:37]} 33. Rc3 {[%emt 0:00:44]} Qd5 {[%emt 0:02:02]} 34. Qh4 {[%emt 0:00:38]} g5 {[%emt 0:02:17]} 35. Qh3 {[%emt 0:01:15]} Qe6 {[%emt 0:02:56]} 36. Nc5 {[%emt 0:01:14]} Qg6 {[%emt 0:00:52]} 37. Qg2 {[%emt 0:01:41]} Rc8 {[%emt 0:01:37]} 38. Rfc1 {[%emt 0:01:10]} Rec7 {[%emt 0:02:08]} 39. Qd5 {[%emt 0:03:56]} Rc6 {[%emt 0:03:26]} 40. Qb3 {[%emt 0:00:00]} R8c7 {[%emt 0:03:27]} 41. d5 {[%emt 0:15:06]} Rb6 {[%emt 0:05:28]} 42. R3c2 {[%emt 0:02:11]} Rd6 {[%emt 0:06:35]} 43. Ne6 {[%emt 0:02:18]} Re7 {[%emt 0:03:32]} 44. Rc7 {[%emt 0:03:34]} Qf7 {[%emt 0:01:57]} 45. Rxe7 {[%emt 0:02:31]} Qxe7 {[%emt 0:00:22]} 46. Rc7 {[%emt 0:01:09]} Rd7 {[%emt 0:00:34]} 47. Rxd7 {[%emt 0:00:43]} Qxd7 {[%emt 0:00:07]} 48. Qd3 {[%emt 0:00:21]} Qd6 {[%emt 0:05:07]} 49. Qxf5+ {[%emt 0:00:35]} Kg8 {[%emt 0:00:09]} 50. Qg6 {[%emt 0:01:11]} Qe7 {[%emt 0:01:43]} 51. Nxg7 {[%emt 0:00:42]} Qxg7 {[%emt 0:00:11]} 52. Qe6+ {[%emt 0:00:33]} Kh7 {[%emt 0:00:38]} 53. d6 {[%emt 0:00:12]} Qa1+ {[%emt 0:02:17]} 54. Kg2 {[%emt 0:00:14]} Qd1 {[%emt 0:00:41]} 55. Qf7+ {[%emt 0:00:58]} Kh8 {[%emt 0:00:25]} 56. d7 {[%emt 0:00:08]} g4 {[%emt 0:00:47]} 57. Qf8+ {[%emt 0:00:05]} Kh7 {[%emt 0:00:14]} 58. d8=Q Qd5+ 1-0

[Event "EYCC 2017"]
[Site "Mamaia"]
[Date "2017.09.11"]
[Round "6"]
[White "Andrukhovich, Elizaveta"]
[Black "Mikheeva, Galina"]
[Result "0-1"]
[ECO "C26"]
[WhiteElo "1465"]
[BlackElo "1596"]
[Annotator "NA RC"]
[PlyCount "90"]
[EventDate "2017.??.??"]
[EventType "swiss"]
[EventCountry "ROU"]
[SourceTitle "playchess.com"]
[Source "ChessBase"]
[SourceQuality "1"]
[TimeControl "40/5400+30:1800+30"]

1. e4 {[%emt 0:00:00]} e5 {[%emt 0:00:18]} 2. Nc3 {[%emt 0:00:00]} Nf6 {[%emt 0:00:48]} 3. g3 {[%emt 0:00:00]} d5 {[%emt 0:07:40]} 4. exd5 {[%emt 0:00:21]} Nxd5 {[%emt 0:00:51]} 5. Bg2 {[%emt 0:00:07]} Nxc3 {[%emt 0:01:46]} 6. bxc3 {[%emt 0:00:06]} Bc5 {[%emt 0:01:51]} 7. Ne2 {[%emt 0:00:51]} Nc6 {[%emt 0:23:30]} 8. O-O {[%emt 0:00:26]} O-O {[%emt 0:00:18]} 9. h3 {[%emt 0:01:27]} Qd6 {[%emt 0:08:20]} 10. d3 {[%emt 0:01:26]} f5 {[%emt 0:08:56]} 11. Kh1 {[%emt 0:05:51]} f4 {[%emt 0:06:47]} 12. gxf4 {[%emt 0:00:50]} exf4 {[%emt 0:00:13]} 13. Bxf4 {[%emt 0:00:40]} Rxf4 {[%emt 0:00:14]} 14. Nxf4 {[%emt 0:00:23]} Qxf4 {[%emt 0:00:05]} 15. Qh5 {[%emt 0:05:05]} Bf5 {[%emt 0:05:26]} 16. Rfe1 {[%emt 0:08:49]} g6 {[%emt 0:03:49]} 17. Qf3 {[%emt 0:00:37]} Qxf3 {[%emt 0:01:32]} 18. Bxf3 {[%emt 0:00:09]} Bxf2 {[%emt 0:00:44]} 19. Re2 {[%emt 0:01:17]} Bc5 {[%emt 0:02:55]} 20. Bxc6 {[%emt 0:02:49]} bxc6 {[%emt 0:00:05]} 21. d4 {[%emt 0:01:34]} Bf8 {[%emt 0:02:59]} 22. Kg2 {[%emt 0:02:46]} Rb8 {[%emt 0:03:05]} 23. a4 {[%emt 0:04:58]} Kf7 {[%emt 0:08:20]} 24. a5 {[%emt 0:05:27]} Rb2 {[%emt 0:02:26]} 25. a6 {[%emt 0:06:06]} Rxc2 {[%emt 0:00:51]} 26. Rxc2 {[%emt 0:00:09]} Bxc2 {[%emt 0:00:03]} 27. Kf3 {[%emt 0:07:44]} Bd3 {[%emt 0:00:46]} 28. Ke3 {[%emt 0:01:41]} Bb5 {[%emt 0:00:13]} 29. Ke4 {[%emt 0:01:42]} Ke6 {[%emt 0:00:51]} 30. Ra5 {[%emt 0:04:47]} Bd6 {[%emt 0:06:08]} 31. Ke3 {[%emt 0:04:11]} Kd5 {[%emt 0:02:20]} 32. Kd2 {[%emt 0:02:44]} Kc4 {[%emt 0:00:14]} 33. Kc2 {[%emt 0:02:26]} g5 {[%emt 0:00:37]} 34. Ra1 {[%emt 0:03:12]} h5 {[%emt 0:00:22]} 35. Rg1 {[%emt 0:02:41]} Bf4 {[%emt 0:00:10]} 36. Re1 {[%emt 0:01:36]} Bxa6 {[%emt 0:00:44]} 37. Ra1 {[%emt 0:00:52]} Bb5 {[%emt 0:00:17]} 38. Rxa7 {[%emt 0:01:05]} g4 {[%emt 0:00:04]} 39. hxg4 {[%emt 0:00:29]} hxg4 {[%emt 0:00:40]} 40. Ra8 {[%emt 0:00:00]} g3 {[%emt 0:00:33]} 41. Rg8 {[%emt 0:04:50]} Ba4+ {[%emt 0:00:10]} 42. Kb2 {[%emt 0:00:34]} Bd1 {[%emt 0:01:12]} 43. Rg6 {[%emt 0:01:38]} Bf3 {[%emt 0:03:00]} 44. Re6 {[%emt 0:07:35]} g2 {[%emt 0:00:24]} 45. Re1 {[%emt 0:00:06]} Bh2 {[%emt 0:00:46]} 0-1

[Event "EYCC 2017"]
[Site "Mamaia"]
[Date "2017.09.11"]
[Round "6"]
[White "Ribstein, Orel"]
[Black "Hajdu, Marton Abris"]
[Result "0-1"]
[ECO "A45"]
[WhiteElo "1464"]
[BlackElo "1280"]
[Annotator "NA"]
[PlyCount "84"]
[EventDate "2017.??.??"]
[EventType "swiss"]
[EventCountry "ROU"]
[SourceTitle "playchess.com"]
[Source "ChessBase"]
[SourceQuality "1"]
[TimeControl "40/5400+30:1800+30"]

1. d4 {[%emt 0:00:00]} Nf6 {[%emt 0:02:51]} 2. Nc3 {[%emt 0:00:01]} d5 {[%emt 0:00:40]} 3. Bf4 {[%emt 0:00:55]} a6 {[%emt 0:01:15]} 4. Qd2 {[%emt 0:02:02]} Bf5 {[%emt 0:00:13]} 5. f3 {[%emt 0:00:46]} h5 {[%emt 0:01:03]} 6. e3 {[%emt 0:06:47]} g6 {[%emt 0:02:03]} 7. Nge2 {[%emt 0:01:09]} b5 {[%emt 0:02:55]} 8. a3 {[%emt 0:02:10]} Bg7 {[%emt 0:00:27]} 9. Ng3 {[%emt 0:00:44]} Bd7 {[%emt 0:00:13]} 10. Bg5 {[%emt 0:07:16]} c6 {[%emt 0:01:38]} 11. Bd3 {[%emt 0:05:14]} a5 {[%emt 0:01:30]} 12. Nge2 {[%emt 0:03:05]} Be6 {[%emt 0:04:23]} 13. Nf4 {[%emt 0:00:17]} Bd7 {[%emt 0:02:11]} 14. O-O {[%emt 0:07:37]} h4 {[%emt 0:01:23]} 15. Bxg6 {[%emt 0:02:12]} fxg6 {[%emt 0:01:00]} 16. Nxg6 {[%emt 0:00:09]} Rh5 {[%emt 0:00:58]} 17. Bxh4 {[%emt 0:01:50]} Rh6 {[%emt 0:02:57]} 18. Qd3 {[%emt 0:03:02]} Qc8 {[%emt 0:09:03]} 19. g4 {[%emt 0:06:31]} Bxg4 {[%emt 0:02:53]} 20. Ne5 {[%emt 0:02:53]} Bf5 {[%emt 0:00:57]} 21. e4 {[%emt 0:01:30]} Bh3 {[%emt 0:02:11]} 22. Bg5 {[%emt 0:07:27]} Bxf1 {[%emt 0:01:18]} 23. Rxf1 {[%emt 0:00:02]} Rh5 {[%emt 0:02:30]} 24. Bxf6 {[%emt 0:00:35]} Bxf6 {[%emt 0:01:17]} 25. exd5 {[%emt 0:00:15]} Rg5+ {[%emt 0:01:24]} 26. Ng4 {[%emt 0:04:51]} Nd7 {[%emt 0:05:48]} 27. h4 {[%emt 0:03:02]} Rg7 {[%emt 0:03:38]} 28. h5 {[%emt 0:01:14]} Qc7 {[%emt 0:01:13]} 29. dxc6 {[%emt 0:07:18]} Qg3+ {[%emt 0:03:29]} 30. Kh1 {[%emt 0:02:24]} Qh3+ {[%emt 0:01:40]} 31. Kg1 {[%emt 0:00:17]} Rxg4+ {[%emt 0:04:55]} 32. fxg4 {[%emt 0:01:21]} Qxg4+ {[%emt 0:00:10]} 33. Kh1 {[%emt 0:07:20]} Qxh5+ {[%emt 0:00:30]} 34. Kg2 {[%emt 0:01:10]} Nb6 {[%emt 0:05:26]} 35. Qxb5 {[%emt 0:06:28]} Qg4+ {[%emt 0:01:19]} 36. Kh2 {[%emt 0:02:16]} Kf7 {[%emt 0:03:47]} 37. Qb3+ {[%emt 0:03:20]} e6 {[%emt 0:00:30]} 38. Rxf6+ {[%emt 0:01:05]} Kxf6 {[%emt 0:00:14]} 39. Ne4+ {[%emt 0:00:02]} Qxe4 {[%emt 0:00:21]} 40. Qxb6 {[%emt 0:00:00]} Rh8+ 41. Kg3 {[%emt 0:00:21]} Qe3+ {[%emt 0:00:46]} 42. Kg4 {[%emt 0:00:11]} Rg8+ {[%emt 0:00:14]} 0-1

[Event "EYCC 2017"]
[Site "Mamaia"]
[Date "2017.09.11"]
[Round "6"]
[White "Zavivaeva, Evelina"]
[Black "Svergina, Sofya"]
[Result "0-1"]
[ECO "C11"]
[WhiteElo "1406"]
[BlackElo "1472"]
[Annotator "NA RC"]
[PlyCount "126"]
[EventDate "2017.??.??"]
[EventType "swiss"]
[EventCountry "ROU"]
[SourceTitle "playchess.com"]
[Source "ChessBase"]
[SourceQuality "1"]
[TimeControl "40/5400+30:1800+30"]

1. e4 {[%emt 0:00:00]} e6 {[%emt 0:00:24]} 2. d4 {[%emt 0:00:00]} d5 {[%emt 0:00:11]} 3. Nc3 {[%emt 0:00:03]} Nf6 {[%emt 0:00:21]} 4. Bg5 {[%emt 0:00:17]} dxe4 {[%emt 0:00:07]} 5. Nxe4 {[%emt 0:00:19]} Be7 {[%emt 0:00:08]} 6. Bxf6 {[%emt 0:02:24]} gxf6 {[%emt 0:00:53]} 7. Nf3 {[%emt 0:01:20]} f5 {[%emt 0:00:24]} 8. Nc3 {[%emt 0:00:52]} a6 {[%emt 0:00:46]} 9. Bc4 {[%emt 0:01:25]} b5 {[%emt 0:00:40]} 10. Bb3 {[%emt 0:05:08]} Bb7 {[%emt 0:01:55]} 11. a3 {[%emt 0:05:23]} c5 {[%emt 0:01:35]} 12. O-O {[%emt 0:09:00]} O-O {[%emt 0:05:59]} 13. Re1 Kh8 {[%emt 0:08:51]} 14. Kh1 {[%emt 0:13:32]} Rg8 {[%emt 0:01:59]} 15. Rg1 {[%emt 0:04:56]} cxd4 {[%emt 0:07:39]} 16. Nxd4 {[%emt 0:01:03]} Bc5 {[%emt 0:04:33]} 17. Nce2 {[%emt 0:06:14]} Qd7 {[%emt 0:12:57]} 18. Qd3 {[%emt 0:05:30]} e5 {[%emt 0:17:16]} 19. Nxf5 {[%emt 0:03:23]} Qxd3 {[%emt 0:00:56]} 20. cxd3 {[%emt 0:00:23]} Bxf2 {[%emt 0:00:40]} 21. Bxf7 {[%emt 0:00:45]} Rg5 {[%emt 0:00:46]} 22. Neg3 {[%emt 0:08:42]} Bxg1 {[%emt 0:00:37]} 23. Kxg1 {[%emt 0:01:44]} Nd7 {[%emt 0:00:42]} 24. h4 {[%emt 0:07:07]} Rg4 {[%emt 0:00:11]} 25. Kh2 {[%emt 0:02:48]} Nf6 {[%emt 0:04:30]} 26. Re1 {[%emt 0:05:43]} e4 {[%emt 0:06:33]} 27. dxe4 {[%emt 0:02:43]} Nxe4 {[%emt 0:00:57]} 28. Nxe4 {[%emt 0:02:38]} Rxe4 {[%emt 0:00:21]} 29. Rxe4 {[%emt 0:01:38]} Bxe4 {[%emt 0:00:05]} 30. Nd6 {[%emt 0:00:31]} Rf8 {[%emt 0:01:02]} 31. Be6 {[%emt 0:00:55]} Bg6 {[%emt 0:01:02]} 32. Kg3 {[%emt 0:01:12]} Rf6 {[%emt 0:00:17]} 33. Nxb5 {[%emt 0:03:41]} Rxe6 {[%emt 0:00:47]} 34. Nc3 {[%emt 0:01:26]} Rb6 {[%emt 0:01:02]} 35. b4 {[%emt 0:00:26]} Rd6 {[%emt 0:00:24]} 36. Na4 {[%emt 0:02:15]} Rd3+ {[%emt 0:00:07]} 37. Kf4 {[%emt 0:00:15]} Rxa3 {[%emt 0:00:07]} 38. Nc5 {[%emt 0:00:08]} Bd3 {[%emt 0:00:24]} 39. Ke5 {[%emt 0:00:34]} a5 {[%emt 0:00:16]} 40. Kd4 {[%emt 0:00:00]} Bf1 {[%emt 0:00:25]} 41. bxa5 {[%emt 0:01:59]} Rxa5 {[%emt 0:00:05]} 42. g4 {[%emt 0:00:13]} Bh3 {[%emt 0:00:32]} 43. g5 {[%emt 0:00:28]} Bg4 {[%emt 0:00:08]} 44. Kc4 {[%emt 0:01:37]} Kg7 {[%emt 0:00:17]} 45. Kb4 {[%emt 0:00:15]} Ra1 {[%emt 0:00:06]} 46. Nd3 {[%emt 0:00:51]} Rh1 {[%emt 0:00:08]} 47. Nf2 {[%emt 0:01:46]} Rxh4 {[%emt 0:00:04]} 48. Kc5 {[%emt 0:00:18]} Rh5 {[%emt 0:00:19]} 49. Kd4 {[%emt 0:00:25]} Rxg5 {[%emt 0:00:06]} 50. Ke4 {[%emt 0:00:20]} h5 {[%emt 0:00:30]} 51. Kf4 {[%emt 0:00:10]} Rf5+ {[%emt 0:00:05]} 52. Kg3 {[%emt 0:00:23]} h4+ {[%emt 0:00:28]} 53. Kg2 {[%emt 0:00:24]} h3+ {[%emt 0:00:25]} 54. Kg3 {[%emt 0:00:23]} h2 {[%emt 0:00:13]} 55. Nh1 {[%emt 0:00:09]} Bf3 {[%emt 0:00:23]} 56. Nf2 {[%emt 0:00:08]} h1=Q {[%emt 0:00:07]} 57. Nxh1 {[%emt 0:00:10]} Bxh1 58. Kg4 Kg6 {[%emt 0:00:12]} 59. Kg3 {[%emt 0:00:31]} Kg5 {[%emt 0:00:18]} 60. Kh2 {[%emt 0:00:54]} Kh4 {[%emt 0:00:05]} 61. Kxh1 {[%emt 0:00:30]} Kg3 {[%emt 0:00:02]} 62. Kg1 {[%emt 0:00:16]} Rf2 {[%emt 0:00:07]} 63. Kh1 {[%emt 0:00:09]} Rf1# {[%emt 0:00:04]} 0-1